{"text_format":"1","workbook":"xlsx","n_sheets":2,"sheets":["排水設備新設等計画確認書（こちらに入力）","排水設備新設等計画確認申請書（転記を確認しこちらも印刷）"],"not_rendered":{"charts":0,"images":1,"macros":1,"external_links":0,"defined_names":2,"comments":0,"pivot_tables":0},"unopened":[],"bounds":{"document_bytes":16777216,"sheet_cells":100000,"rows_first":2000,"rows_last":500,"rows_between":2000,"halvings":0,"cell_chars":16384,"cell_head_chars":4096},"cells_cut":0,"cells_raw":0,"read":"whole","date_system":"1900"}

{"sheet":"排水設備新設等計画確認書（こちらに入力）","index":0,"n_rows":61,"n_cols":77,"rows_kept":61,"cut":false,"hidden":false,"merged":[[15,72,17,75],[19,36,20,39],[21,36,22,39],[23,36,24,39],[25,36,26,39],[23,48,24,49],[23,40,24,47],[25,42,26,44],[19,40,20,43],[21,42,22,44],[21,47,22,49],[25,50,26,56],[23,64,24,70],[58,2,61,7],[19,2,20,10],[21,2,22,10],[23,2,24,10],[25,2,26,10],[58,8,59,17],[60,8,61,17],[25,14,26,17],[19,76,20,77],[19,59,20,62],[19,63,20,67],[19,44,20,48],[19,49,20,50],[19,51,20,52],[19,53,20,54],[19,55,20,56],[19,57,20,58],[19,70,20,71],[19,72,20,73],[19,74,20,75],[19,68,20,69],[25,20,26,23],[25,26,26,29],[23,50,24,56],[25,63,26,65],[25,46,26,49],[10,15,11,17],[12,15,13,17],[10,18,11,34],[12,18,13,34],[11,12,12,14],[16,28,16,29],[19,12,20,16],[21,12,22,22],[19,17,20,35],[16,25,16,26],[16,20,16,23],[6,6,7,31],[23,14,24,17],[23,20,24,23],[13,72,14,77],[6,46,7,67],[8,38,10,75],[11,50,12,52],[13,47,14,71],[14,37,17,41],[17,42,18,46],[15,42,16,46],[13,42,14,46],[21,24,22,24],[21,25,22,35],[17,18,18,32],[17,33,18,34],[60,30,61,37],[60,40,61,47],[25,59,26,61],[15,47,16,71],[18,72,18,77],[15,76,17,77],[17,47,18,65],[25,75,26,77],[25,68,26,73],[21,59,22,63],[21,64,22,70],[21,71,22,77],[23,71,24,75],[23,76,24,77],[23,57,24,61],[23,62,24,63],[11,53,12,66],[11,67,12,68],[11,69,12,76],[58,20,59,21],[58,22,59,23],[58,26,59,27],[21,56,22,58],[21,50,22,53],[44,56,45,76],[46,56,47,76],[27,11,28,34],[27,48,43,49],[48,48,61,49],[44,48,45,53],[48,68,49,77],[60,20,61,27]]}
[]
[]
[]
[]
[null,null,"様式第４号（第７条第１項関係）"]
[]
[null,null,null,null,null,null,"排水設備新設等計画確認書",null,null,null,null,null,null,null,null,null,null,null,null,null,null,null,null,null,null,null,null,null,null,null,null,null,null,null,null,null,null,null,null,null,null,null,null,null,null,null,"誓約書"]
[]
[null,null,null,"多賀町　指令公下第　　　　　　　号",null,null,null,null,null,null,null,null,null,null,null,null,null,null,null,null,null,null,null,null,null,null,null,null,null,null,null,null,null,null,null,null,null,null,"　他人の所有地もしくは家屋、または他人の排水設備を使用するについて、事故または紛争が生じた場合および自己所有地の排水設備について故障等が生じた場合は、一切私の責任において処理し、町に対し迷惑、損害をかけないことを誓約します。"]
[]
[null,null,null,null,null,null,null,null,null,null,null,null,null,null,null,"住所"]
[null,null,null,null,null,null,null,null,null,null,null,null,"申請者",null,null,null,null,null,null,null,null,null,null,null,null,null,null,null,null,null,null,null,null,null,null,null,null,null,null,null,null,null,null,null,null,null,null,null,null,null,"氏名",null,null,null,null,null,null,null,null,null,null,null,null,null,null,null,null,"㊞",null,"(署名または記名押印）"]
[null,null,null,null,null,null,null,null,null,null,null,null,null,null,null,"氏名"]
[null,null,null,null,null,null,null,null,null,null,null,null,null,null,null,null,null,null,null,null,null,null,null,null,null,null,null,null,null,null,null,null,null,null,null,null,null,null,null,null,null,null,"所在地",null,null,null,null,null,null,null,null,null,null,null,null,null,null,null,null,null,null,null,null,null,null,null,null,null,null,null,null,null,"責任技術者"]
[null,null,null,null,"あなたから申請のありました排水設備新設等の計画について、次のとおり確認します。",null,null,null,null,null,null,null,null,null,null,null,null,null,null,null,null,null,null,null,null,null,null,null,null,null,null,null,null,null,null,null,null,"施工業者"]
[null,null,null,null,null,null,null,null,null,null,null,null,null,null,null,null,null,null,null,null,null,null,null,null,null,null,null,null,null,null,null,null,null,null,null,null,null,null,null,null,null,null,"名称",null,null,null,null,null,null,null,null,null,null,null,null,null,null,null,null,null,null,null,null,null,null,null,null,null,null,null,null,null,null,null,null,null,"㊞"]
[null,null,null,null,null,null,null,null,null,null,null,null,null,null,null,null,null,null,null,null,null,null,null,null,"年",null,null,"月",null,null,"日"]
[null,null,null,null,null,null,null,null,null,null,null,null,null,null,null,null,null,null,"多賀町長　",null,null,null,null,null,null,null,null,null,null,null,null,null,null,null,null,null,null,null,null,null,null,null,"代表者氏名"]
[null,null,null,null,null,null,null,null,null,null,null,null,null,null,null,null,null,null,null,null,null,null,null,null,null,null,null,null,null,null,null,null,null,null,null,null,null,null,null,null,null,null,null,null,null,null,null,null,null,null,null,null,null,null,null,null,null,null,null,null,null,null,null,null,null,null,null,null,null,null,null,null,"(署名または記名押印）"]
[null,null,"施工場所",null,null,null,null,null,null,null,null,null,"多賀町大字",null,null,null,null,null,null,null,null,null,null,null,null,null,null,null,null,null,null,null,null,null,null,null,"工事予定",null,null,null,"着工",null,null,null,null,null,null,null,null,"年",null,null,null,"月",null,null,null,"日",null,"完了",null,null,null,null,null,null,null,null,"年",null,null,null,"月",null,null,null,"日"]
[]
[null,null,"使用者名",null,null,null,null,null,null,null,null,null,null,null,null,null,null,null,null,null,null,null,null,null,"☎",null,null,null,null,null,null,null,null,null,null,null,"排水区分",null,null,null,null,null,"家事用",null,null,null,null,"営業用",null,null,"（）",null,null,null,null,null,"その他",null,null,"（）",null,null,null,null,"水栓番号"]
[]
[null,null,"家屋等所有区分",null,null,null,null,null,null,null,null,null,null,null,"持家",null,null,null,null,null,"借家",null,null,null,null,null,null,null,null,null,null,null,null,null,null,null,"宅地面積",null,null,null,null,null,null,null,null,null,null,null,"㎡",null,"家屋面積",null,null,null,null,null,null,null,null,null,null,null,"㎡",null,"使用人数",null,null,null,null,null,null,null,null,null,null,null,"人"]
[]
[null,null,"排水設備工事区分",null,null,null,null,null,null,null,null,null,null,null,"新設",null,null,null,null,null,"増設",null,null,null,null,null,"改築",null,null,null,null,null,null,null,null,null,"貸付金",null,null,null,null,null,"受ける",null,null,null,"受けない",null,null,null,"用水源の区分",null,null,null,null,null,null,null,null,"上水道",null,null,null,"井戸",null,null,null,null,"上水道井戸併用",null,null,null,null,null,null,"その他"]
[]
[null,null,null,"設　　　計　　　図",null,null,null,null,null,null,null,"※台所配水の防臭桝は、かご付きであること。",null,null,null,null,null,null,null,null,null,null,null,null,null,null,null,null,null,null,null,null,null,null,null,null,null,null,null,null,null,null,null,null,null,null,null,null,"付近見取図"]
[]
[]
[]
[]
[]
[]
[]
[]
[]
[]
[]
[]
[]
[]
[]
[]
[null,null,null,null,null,null,null,null,null,null,null,null,null,null,null,null,null,null,null,null,null,null,null,null,null,null,null,null,null,null,null,null,null,null,null,null,null,null,null,null,null,null,null,null,null,null,null,null,"指示事項",null,null,null,null,null,null,1,"施工に際しては申請書の記載事項と相違しないこと。"]
[]
[null,null,null,null,null,null,null,null,null,null,null,null,null,null,null,null,null,null,null,null,null,null,null,null,null,null,null,null,null,null,null,null,null,null,null,null,null,null,null,null,null,null,null,null,null,null,null,null,null,null,null,null,null,null,null,2,"確認事項について変更が生じたときは、直ちに再度\n確認申請書を提出すること。"]
[]
[null,null,null,null,null,null,null,null,null,null,null,null,null,null,null,null,null,null,null,null,null,null,null,null,null,null,null,null,null,null,null,null,null,null,null,null,null,null,null,null,null,null,null,null,null,null,null,null,"凡例",null,null,null,null,null,null,null,null,null,null,null,null,null,null,null,null,null,null,null,"受付印及び番号"]
[]
[]
[]
[]
[]
[]
[]
[]
[]
[null,null,"確認の条件",null,null,null,null,null,"ディスポーザー設置",null,null,null,null,null,null,null,null,null,null,null,"有",null,"・",null,null,null,"無"]
[]
[null,null,null,null,null,null,null,null,"既 設 処 理 方 法 ",null,null,null,null,null,null,null,null,null,null,null,"汲み取り",null,null,null,null,null,null,null,null,null,"単独浄化槽",null,null,null,null,null,null,null,null,null,"合併浄化槽"]

{"sheet":"排水設備新設等計画確認申請書（転記を確認しこちらも印刷）","index":1,"n_rows":61,"n_cols":77,"rows_kept":61,"cut":false,"hidden":false,"merged":[[13,47,14,71],[12,18,13,34],[0,56,0,59],[0,60,0,63],[1,60,4,63],[19,2,20,10],[19,12,20,16],[19,17,20,35],[19,36,20,39],[19,40,20,43],[19,44,20,48],[11,50,12,52],[0,52,0,55],[0,64,0,77],[1,64,4,77],[9,3,9,6],[9,7,9,12],[8,23,8,26],[8,28,8,29],[8,31,8,32],[6,6,7,31],[6,46,7,67],[15,72,17,75],[8,38,10,75],[21,2,22,10],[21,12,22,22],[21,24,22,24],[21,25,22,35],[21,36,22,39],[21,42,22,44],[17,42,18,46],[14,37,17,41],[15,42,16,46],[13,42,14,46],[25,2,26,10],[25,14,26,17],[25,20,26,23],[25,26,26,29],[25,36,26,39],[25,42,26,44],[25,46,26,49],[23,50,24,56],[23,57,24,61],[23,2,24,10],[23,14,24,17],[23,20,24,23],[23,36,24,39],[23,40,24,47],[23,48,24,49],[58,2,61,7],[58,8,59,17],[60,8,61,17],[60,20,61,27],[60,30,61,37],[60,40,61,47],[27,11,28,34],[27,48,43,49],[44,48,45,53],[48,48,61,49],[58,20,59,21],[58,22,59,23],[58,26,59,27],[10,15,11,17],[10,18,11,34],[11,12,12,14],[12,15,13,17],[44,56,45,76],[46,56,47,76],[21,47,22,49],[21,50,22,53],[21,56,22,58],[21,59,22,63],[21,64,22,70],[21,71,22,77],[19,72,20,73],[19,74,20,75],[19,76,20,77],[13,72,14,77],[15,76,17,77],[11,53,12,66],[11,67,12,68],[11,69,12,76],[18,72,18,77],[15,47,16,71],[19,63,20,67],[17,47,18,65],[19,68,20,69],[19,70,20,71],[19,49,20,50],[19,51,20,52],[19,53,20,54],[19,55,20,56],[19,57,20,58],[19,59,20,62],[48,68,49,77],[25,50,26,56],[25,59,26,61],[25,63,26,65],[25,68,26,73],[25,75,26,77],[23,62,24,63],[23,64,24,70],[23,71,24,75],[23,76,24,77]]}
[null,null,null,null,null,null,null,null,null,null,null,null,null,null,null,null,null,null,null,null,null,null,null,null,null,null,null,null,null,null,null,null,null,null,null,null,null,null,null,null,null,null,null,null,null,null,null,null,null,null,null,null,"課長",null,null,null,"課長補佐",null,null,null,"係",null,null,null,"合議"]
[null,null,null,null,null,null,null,null,null,null,null,null,null,null,null,null,null,null,null,null,null,null,null,null,null,null,null,null,null,null,null,null,null,null,null,null,null,null,null,null,null,null,null,null,null,null,null,null,null,null,null,null,false,false,false,false,false,false,false]
[null,null,null,null,null,null,null,null,null,null,null,null,null,null,null,null,null,null,null,null,null,null,null,null,null,null,null,null,null,null,null,null,null,null,null,null,null,null,null,null,null,null,null,null,null,null,null,null,null,null,null,null,false,false,false,false]
[null,null,null,null,null,null,null,null,null,null,null,null,null,null,null,null,null,null,null,null,null,null,null,null,null,null,null,null,null,null,null,null,null,null,null,null,null,null,null,null,null,null,null,null,null,null,null,null,null,null,null,null,false,false,false,false]
[null,null,"様式第１号（第６条第１項関係）",null,null,null,null,null,null,null,null,null,null,null,null,null,null,null,null,null,null,null,null,null,null,null,null,null,null,null,null,null,null,null,null,null,null,null,null,null,null,null,null,null,null,null,null,null,null,null,null,null,false,false,false,false]
[]
[null,null,null,null,null,null,"排水設備新設等計画確認申請書",null,null,null,null,null,null,null,null,null,null,null,null,null,null,null,null,null,null,null,null,null,null,null,null,null,null,null,null,null,null,null,null,null,null,null,null,null,null,null,"誓約書"]
[]
[null,null,null,null,null,null,null,null,null,null,null,null,null,null,null,null,null,null,null,null,null,null,null,null,null,null,null,"年",null,null,"月",null,null,"日",null,null,null,null,"　他人の所有地もしくは家屋、または他人の排水設備を使用するについて、事故または紛争が生じた場合および自己所有地の排水設備について故障等が生じた場合は、一切私の責任において処理し、町に対し迷惑、損害をかけないことを誓約します。"]
[null,null,null,"多賀町長",null,null,null,null,null,null,null,null,null,"殿"]
[null,null,null,null,null,null,null,null,null,null,null,null,null,null,null,"住所",null,null,{"$f":"'排水設備新設等計画確認書（こちらに入力）'!S11","v":0}]
[null,null,null,null,null,null,null,null,null,null,null,null,"申請者",null,null,null,null,null,null,null,null,null,null,null,null,null,null,null,null,null,null,null,null,null,null,null,null,null,null,null,null,null,null,null,null,null,null,null,null,null,"氏名",null,null,{"$f":"'排水設備新設等計画確認書（こちらに入力）'!BB12:BO13","v":0},null,null,null,null,null,null,null,null,null,null,null,null,null,"㊞",null,"(署名または記名押印）"]
[null,null,null,null,null,null,null,null,null,null,null,null,null,null,null,"氏名",null,null,{"$f":"'排水設備新設等計画確認書（こちらに入力）'!S13","v":0}]
[null,null,null,null,null,null,null,null,null,null,null,null,null,null,null,null,null,null,null,null,null,null,null,null,null,null,null,null,null,null,null,null,null,null,null,null,null,null,null,null,null,null,"所在地",null,null,null,null,{"$f":"'排水設備新設等計画確認書（こちらに入力）'!AV14","v":0},null,null,null,null,null,null,null,null,null,null,null,null,null,null,null,null,null,null,null,null,null,null,null,null,"責任技術者"]
[null,null,null,null,null,null,null,null,null,null,null,null,null,null,null,null,null,null,null,null,null,null,null,null,null,null,null,null,null,null,null,null,null,null,null,null,null,"施工業者"]
[null,null,null,null,"排水設備の新設等をしたいので、計画の確認を願いたく申請します。",null,null,null,null,null,null,null,null,null,null,null,null,null,null,null,null,null,null,null,null,null,null,null,null,null,null,null,null,null,null,null,null,null,null,null,null,null,"名称",null,null,null,null,{"$f":"'排水設備新設等計画確認書（こちらに入力）'!AV16","v":0},null,null,null,null,null,null,null,null,null,null,null,null,null,null,null,null,null,null,null,null,null,null,null,null,{"$f":"'排水設備新設等計画確認書（こちらに入力）'!BU16:BX18","v":0},null,null,null,"㊞"]
[]
[null,null,null,null,null,null,null,null,null,null,null,null,null,null,null,null,null,null,null,null,null,null,null,null,null,null,null,null,null,null,null,null,null,null,null,null,null,null,null,null,null,null,"代表者氏名",null,null,null,null,{"$f":"'排水設備新設等計画確認書（こちらに入力）'!AV18","v":0}]
[null,null,null,null,null,null,null,null,null,null,null,null,null,null,null,null,null,null,null,null,null,null,null,null,null,null,null,null,null,null,null,null,null,null,null,null,null,null,null,null,null,null,null,null,null,null,null,null,null,null,null,null,null,null,null,null,null,null,null,null,null,null,null,null,null,null,null,null,null,null,null,null,"(署名または記名押印）"]
[null,null,"施工場所",null,null,null,null,null,null,null,null,null,"多賀町大字",null,null,null,null,{"$f":"'排水設備新設等計画確認書（こちらに入力）'!R20","v":0},null,null,null,null,null,null,null,null,null,null,null,null,null,null,null,null,null,null,"工事予定",null,null,null,"着工",null,null,null,{"$f":"'排水設備新設等計画確認書（こちらに入力）'!AS20","v":0},null,null,null,null,"年",null,{"$f":"'排水設備新設等計画確認書（こちらに入力）'!AZ20","v":0},null,"月",null,{"$f":"'排水設備新設等計画確認書（こちらに入力）'!BD20","v":0},null,"日",null,"完了",null,null,null,{"$f":"'排水設備新設等計画確認書（こちらに入力）'!BL20","v":0},null,null,null,null,"年",null,{"$f":"'排水設備新設等計画確認書（こちらに入力）'!BS20","v":0},null,"月",null,{"$f":"'排水設備新設等計画確認書（こちらに入力）'!BW20","v":0},null,"日"]
[]
[null,null,"使用者名",null,null,null,null,null,null,null,null,null,{"$f":"'排水設備新設等計画確認書（こちらに入力）'!M22","v":0},null,null,null,null,null,null,null,null,null,null,null,"☎",{"$f":"'排水設備新設等計画確認書（こちらに入力）'!Z22","v":0},null,null,null,null,null,null,null,null,null,null,"排水区分",null,null,null,null,null,"家事用",null,null,null,null,"営業用",null,null,{"$f":"'排水設備新設等計画確認書（こちらに入力）'!AY22:BB23","v":"（）"},null,null,null,null,null,"その他",null,null,{"$f":"'排水設備新設等計画確認書（こちらに入力）'!BH22:BL23","v":"（）"},null,null,null,null,"水栓番号",null,null,null,null,null,null,{"$f":"'排水設備新設等計画確認書（こちらに入力）'!BT22","v":0}]
[]
[null,null,"家屋等所有区分",null,null,null,null,null,null,null,null,null,null,null,"持家",null,null,null,null,null,"借家",null,null,null,null,null,null,null,null,null,null,null,null,null,null,null,"宅地面積",null,null,null,{"$f":"'排水設備新設等計画確認書（こちらに入力）'!AO24","v":0},null,null,null,null,null,null,null,"㎡",null,"家屋面積",null,null,null,null,null,null,{"$f":"'排水設備新設等計画確認書（こちらに入力）'!BF24","v":0},null,null,null,null,"㎡",null,"使用人数",null,null,null,null,null,null,{"$f":"'排水設備新設等計画確認書（こちらに入力）'!BT24","v":0},null,null,null,null,"人"]
[]
[null,null,"排水設備工事区分",null,null,null,null,null,null,null,null,null,null,null,"新設",null,null,null,null,null,"増設",null,null,null,null,null,"改築",null,null,null,null,null,null,null,null,null,"貸付金",null,null,null,null,null,"受ける",null,null,null,"受けない",null,null,null,"用水源の区分",null,null,null,null,null,null,null,null,"上水道",null,null,null,"井戸",null,null,null,null,"上水道井戸併用",null,null,null,null,null,null,"その他"]
[]
[null,null,null,"設　　　計　　　図",null,null,null,null,null,null,null,"※台所配水の防臭桝は、かご付きであること。",null,null,null,null,null,null,null,null,null,null,null,null,null,null,null,null,null,null,null,null,null,null,null,null,null,null,null,null,null,null,null,null,null,null,null,null,"付近見取図"]
[]
[]
[]
[]
[]
[]
[]
[]
[]
[]
[]
[]
[]
[]
[]
[]
[null,null,null,null,null,null,null,null,null,null,null,null,null,null,null,null,null,null,null,null,null,null,null,null,null,null,null,null,null,null,null,null,null,null,null,null,null,null,null,null,null,null,null,null,null,null,null,null,"指示事項",null,null,null,null,null,null,1,"施工に際しては申請書の記載事項と相違しないこと。"]
[]
[null,null,null,null,null,null,null,null,null,null,null,null,null,null,null,null,null,null,null,null,null,null,null,null,null,null,null,null,null,null,null,null,null,null,null,null,null,null,null,null,null,null,null,null,null,null,null,null,null,null,null,null,null,null,null,2,"確認事項について変更が生じたときは、直ちに再度\n確認申請書を提出すること。"]
[]
[null,null,null,null,null,null,null,null,null,null,null,null,null,null,null,null,null,null,null,null,null,null,null,null,null,null,null,null,null,null,null,null,null,null,null,null,null,null,null,null,null,null,null,null,null,null,null,null,"凡例",null,null,null,null,null,null,null,null,null,null,null,null,null,null,null,null,null,null,null,"受付印及び番号"]
[]
[]
[]
[]
[]
[]
[]
[]
[]
[null,null,"確認の条件",null,null,null,null,null,"ディスポーザー設置",null,null,null,null,null,null,null,null,null,null,null,"有",null,"・",null,null,null,"無"]
[]
[null,null,null,null,null,null,null,null,"既 設 処 理 方 法 ",null,null,null,null,null,null,null,null,null,null,null,"汲み取り",null,null,null,null,null,null,null,null,null,"単独浄化槽",null,null,null,null,null,null,null,null,null,"合併浄化槽"]